fUSD/lending_fUSD_20241114
["ID","MTS","AMOUNT","RATE_DAILY","PERIOD"]
[342216917,1731592232457,-13343.16782446,9.801e-05,2]
[342216918,1731592232473,-1125.83217554,9.801e-05,2]
[342216919,1731592232483,-1000.0,9.899e-05,2]
[342216920,1731592232492,-1312.6832,9.899e-05,2]
[342216921,1731592232502,-15005.79617685,9.91e-05,2]
[342216922,1731592232511,-161.156207,9.94e-05,2]
[342216923,1731592232521,-570.51819378,9.973e-05,2]
[342216924,1731592232534,-500.0,9.973e-05,2]
[342216925,1731592232543,-1485.5475825,9.992e-05,2]
[342216926,1731592232553,-507.8010086,9.992e-05,2]
[342216927,1731592232562,-869.0872938,9.992e-05,2]
[342216928,1731592232571,-150.0,9.992e-05,2]
[342216929,1731592232581,-1785.0275992,9.992e-05,2]
[342216930,1731592232591,-999.99,9.992e-05,2]
[342216931,1731592232600,-1103.49,9.992e-05,2]
[342216932,1731592232610,-423.7354293,9.992e-05,2]
[342216933,1731592232619,-5057.9887284,9.992e-05,2]
[342216934,1731592232629,-1445.2239941,9.993e-05,2]
[342216935,1731592232638,-494.0172974,9.993e-05,2]
[342216936,1731592232648,-373.69,9.993e-05,2]
[342216937,1731592232662,-1791.6574958,9.993e-05,2]
[342216938,1731592232671,-7724.31,9.993e-05,2]
[342216939,1731592232681,-425.3092548,9.993e-05,2]
[342216940,1731592232691,-5076.7749602,9.993e-05,2]
[342216941,1731592232700,-300.6786532,9.999e-05,2]
[342216942,1731592232710,-862.14021219,9.999e-05,2]
[342216943,1731592232720,-14765.27419289,9.999e-05,2]
[342216944,1731592232733,-82982.30087,9.999e-05,2]
[342216945,1731592232756,-92219.19508487,9.999e-05,2]
[342216946,1731592232765,-150.99,9.999e-05,2]
[342216947,1731592232774,-47042.35322647,9.999e-05,2]
[342216948,1731592232784,-30259.04,0.0001,2]
[342216949,1731592232793,-250.0274167,0.0001,2]
[342216950,1731592232802,-539562.39427196,0.0001,2]
[342216951,1731592232837,-1566.58426144,0.0001,2]
[342216982,1731592239263,-6817.6378,9.81e-05,2]
[342216983,1731592239273,-151.27605965,9.999e-05,2]
[342216984,1731592239283,-207910.77837477,0.0001,2]
[342216985,1731592239294,-739.9842,0.0001,2]
[342216986,1731592239309,-36995.75753188,0.0001,2]
[342216987,1731592239320,-1850.0,0.0001,2]
[342216988,1731592239331,-45150.75154431,0.0001,2]
[342216989,1731592239342,-16888.75176612,0.0001,2]
[342216990,1731592239357,-4341.74701225,0.0001,2]
[342216991,1731592239368,-3630.29183471,0.0001,2]
[342216992,1731592239379,-3002.93190294,0.0001,2]
[342216993,1731592239390,-2079.27900819,0.0001,2]
[342216994,1731592239499,-867.0040068,0.0001,2]
[342216995,1731592239511,-25810601.7610124,0.0001,2]
[342216996,1731592240120,-1657.08379984,9.999e-05,2]
[342216997,1731592240131,-2253.28462611,0.0001,2]
[342216998,1731592240233,-488.33505874,0.0001,2]
[342217003,1731592243169,-1017.75082926,0.0001,2]
[342217004,1731592243283,-4899.42017174,0.0001,2]
[342217005,1731592243295,-2535.3446041,0.0001,2]
[342217006,1731592243306,-2511.56365129,0.0001,2]
[342217007,1731592243318,-24345.36364229,0.0001,2]
[342217008,1731592243333,-131392.20399302,0.0001,2]
[342217009,1731592243358,-6572.71677691,0.0001,2]
[342217010,1731592243380,-1379319.6323357,0.0001,2]
[342217011,1731592243391,-18145.33865602,0.0001,2]
[342217012,1731592243423,-2757.35631423,0.0001,2]
[342217013,1731592243438,-7364.70555058,0.0001,2]
[342217014,1731592243449,-446.1148993,0.0001,2]
[342217015,1731592243460,-20150.18784101,0.0001,2]
[342217016,1731592243471,-5598.65967998,0.0001,2]
[342217126,1731592246221,-564.11677365,9.973e-05,2]
[342217127,1731592246231,-8834.63804235,0.0001,2]
[342217128,1731592246242,-1286.07318152,0.0001,2]
[342217129,1731592246258,-6557.55996358,0.0001,2]
[342217130,1731592246270,-318.57482,0.0001,2]
[342217131,1731592246355,-368.90096755,0.0001,2]
[342217132,1731592246366,-2220.0,0.0001,2]
[342217133,1731592246385,-1100.918595,0.0001,2]
[342217134,1731592246504,-516.0034221,0.0001,2]
[342217140,1731592246726,984.2912,9e-05,2]
[342217158,1731593080260,-362.4,8.572e-05,2]
[342217159,1731593080286,-250.0,8.575e-05,2]
[342217160,1731593080313,-332.03,8.586e-05,2]
[342217161,1731593080339,-200.0,8.61e-05,2]
[342217162,1731593080365,-644.33,8.619e-05,2]
[342217163,1731593080391,-211.24,8.634e-05,2]
[342217164,1731593103176,156.0,9e-05,30]
[342217165,1731593103593,156.0,0.00010684,30]
[342217166,1731593103863,156.0,0.00012368,30]
[342217167,1731593104193,156.0,0.00014053,30]
[342217168,1731593119925,-1500.0,8.219e-05,2]
[342217170,1731593207042,-364.15,8.219e-05,2]
[342217171,1731593207071,-300.0,8.566e-05,2]
[342217172,1731593207099,-23900.0,8.567e-05,2]
[342217173,1731593207128,-435.85,8.591e-05,2]
[342217174,1731593234875,-1049.36,8.591e-05,2]
[342217175,1731593234897,-984.2912,8.592e-05,2]
[342217176,1731593234919,-250.0,8.602e-05,2]
[342217177,1731593234940,-38.76,8.634e-05,2]
[342217178,1731593234962,-308.45,9.353e-05,2]
[342217179,1731593234986,-308.45,9.355e-05,2]
[342217180,1731593235008,-308.45,9.358e-05,2]
[342217181,1731593235030,-308.45,9.36e-05,2]
[342217182,1731593235052,-308.45,9.363e-05,2]
[342217183,1731593235074,-308.45,9.365e-05,2]
[342217184,1731593235096,-308.45,9.368e-05,2]
[342217185,1731593235118,-308.45,9.37e-05,2]
[342217186,1731593235143,-308.45,9.373e-05,2]
[342217187,1731593235166,-308.45,9.375e-05,2]
[342217188,1731593235190,-308.45,9.378e-05,2]
[342217189,1731593235233,-308.45,9.38e-05,2]
[342217190,1731593235255,-308.45,9.383e-05,2]
[342217191,1731593235277,-308.45,9.385e-05,2]
[342217192,1731593235298,-308.45,9.387e-05,2]
[342217193,1731593235320,-308.45,9.39e-05,2]
[342217194,1731593235341,-308.45,9.392e-05,2]
[342217195,1731593235363,-308.45,9.395e-05,2]
[342217196,1731593235384,-150.0,9.397e-05,2]
[342217197,1731593235408,-308.45,9.397e-05,2]
[342217198,1731593235429,-308.45,9.4e-05,2]
[342217199,1731593235450,-1000.0,9.401e-05,2]
[342217200,1731593235471,-150.0,9.478e-05,2]
[342217201,1731593235490,-155.37,9.635e-05,2]
[342217202,1731593235860,-362.4,9.643e-05,2]
[342217203,1731593235882,-349.29,9.67e-05,2]
[342217204,1731593235904,-999.99,9.67e-05,2]
[342217205,1731593235926,-150.0,9.726e-05,2]
[342217206,1731593235948,-150.0,9.778e-05,2]
[342217207,1731593235971,-302.3,9.778e-05,2]
[342217208,1731593235992,-2048.80122202,9.789e-05,2]
[342217209,1731593236012,-13639.0,9.863e-05,2]
[342217210,1731593236034,-1160.0,9.863e-05,2]
[342217211,1731593236054,-1091.0,9.863e-05,2]
[342217212,1731593236075,-333.4091,9.899e-05,2]
[342217213,1731593236098,-1000.0,9.899e-05,2]
[342217214,1731593236119,-2158.8803,9.9e-05,2]
[342217215,1731593236143,-588.4989,9.9e-05,2]
[342217216,1731593236170,-177.01268371,9.9e-05,2]
[342217217,1731593236194,-940.514,9.9e-05,2]
[342217218,1731593236219,-1000.0,9.9e-05,2]
[342217219,1731593236240,-3578.9465,9.9e-05,2]
[342217220,1731593236262,-202.14935715,9.973e-05,2]
[342217221,1731593236288,-347.35582032,9.973e-05,2]
[342217222,1731593236309,-500.0,9.973e-05,2]
[342217223,1731593236332,-1179.1955772,9.992e-05,2]
[342217224,1731593236353,-886.178785,9.992e-05,2]
[342217225,1731593236377,-1373.7729293,9.992e-05,2]
[342217226,1731593236402,-597.78211187,9.992e-05,2]
[342217227,1731593236424,-381.1914288,9.992e-05,2]
[342217228,1731593236446,-6003.6918766,9.992e-05,2]
[342217229,1731593236467,-1158.1079375,9.993e-05,2]
[342217230,1731593236489,-873.2677971,9.993e-05,2]
[342217231,1731593236511,-1153.9824493,9.993e-05,2]
[342217232,1731593236533,-381.1914288,9.993e-05,2]
[342217233,1731593236555,-5043.1588141,9.993e-05,2]
[342217234,1731593236576,-252.59634304,9.999e-05,2]
[342217235,1731593236596,-15469.65432297,9.999e-05,2]
[342217236,1731593236621,-243682.5719864,0.0001,2]
[342217237,1731593236803,-24828.62299202,0.0001,2]
[342217238,1731593402611,156.0,0.0001,30]
[342217239,1731593402876,156.0,0.00012067,30]
[342217240,1731593403215,156.0,0.00014133,30]
[342217249,1731593432405,-278.43,9.125e-05,2]
[342217250,1731593432414,-150.71,9.479e-05,2]
[342217251,1731593432424,-150.71,9.484e-05,2]
[342217252,1731593432434,-150.71,9.489e-05,2]
[342217253,1731593432444,-150.71,9.494e-05,2]
[342217254,1731593432453,-150.71,9.5e-05,2]
[342217255,1731593432463,-150.71,9.505e-05,2]
[342217256,1731593432472,-150.71,9.51e-05,2]
[342217257,1731593432482,-150.71,9.515e-05,2]
[342217258,1731593432491,-150.71,9.521e-05,2]
[342217259,1731593432501,-150.71,9.526e-05,2]
[342217260,1731593432510,-250.0,9.601e-05,2]
[342217261,1731593432520,-162.73,9.841e-05,2]
[342217262,1731593432529,-2066.0,9.9e-05,2]
[342217263,1731593432539,-1000.0,9.9e-05,2]
[342217264,1731593432548,-763.7499947,9.992e-05,2]
[342217265,1731593432561,-581.0682503,9.992e-05,2]
[342217266,1731593432570,-753.0203537,9.993e-05,2]
[342217267,1731593432580,-572.9050375,9.993e-05,2]
[342217268,1731593432590,-1107.20693712,9.999e-05,2]
[342217269,1731593432600,-40056.7369024,0.0001,2]
[342217270,1731593432616,-36428.4674422,0.0001,2]
[342217287,1731593438363,-2716.66522628,0.0001,2]
[342217288,1731593438402,-16493396.63669668,0.0001,2]
[342217289,1731593438412,-1000.0,0.0001,2]
[342217290,1731593438422,-656.6218184,0.0001,2]
[342217291,1731593438431,-1000.0,0.0001,2]
[342217292,1731593438441,-17580.75593775,0.0001,2]
[342217293,1731593438450,-1000.0,0.0001,2]
[342217294,1731593438460,-9295967.74655957,0.0001,2]
[342217295,1731593438485,-3936.61582778,0.0001,2]
[342217296,1731593438498,-6525.71032,0.0001,2]
[342217305,1731593439170,-326185.7439119,0.0001,2]
[342217331,1731593440164,-19912.05768958,0.0001,2]
[342217332,1731593440176,-1994.56615784,0.0001,2]
[342217335,1731593440217,-575.501587,0.0001,2]
[342217336,1731593440230,-856.32,0.0001,2]
[342217337,1731593440258,-375.0,0.0001,2]
[342217338,1731593440272,-1505.90000002,0.0001,2]
[342217339,1731593440288,-3799.03533993,0.0001,2]
[342217340,1731593440299,-261.333,0.0001,2]
[342217343,1731593440912,-150454.16102585,0.0001,2]
[342217344,1731593440923,-58640.44662625,0.0001,2]
[342217345,1731593440934,-3221.10000002,0.0001,2]
[342217346,1731593440946,-1917.04589939,0.0001,2]
[342217347,1731593440983,-2563.73355998,0.0001,2]
[342217348,1731593440995,-768.3,0.0001,2]
[342217349,1731593441007,-1074.45,0.0001,2]
[342217350,1731593441018,-1350.90100024,0.0001,2]
[342217351,1731593441030,-1518.5806454,0.0001,2]
[342217352,1731593441053,-272.025,0.0001,2]
[342217353,1731593443345,-454.23503158,0.0001,2]
[342217354,1731593443467,-31879.40353436,0.0001,2]
[342217355,1731593443478,-592.16160144,0.0001,2]
[342217356,1731593443490,-3147.19224954,0.0001,2]
[342217358,1731593443502,-2987.74341899,0.0001,2]
[342217360,1731593443514,-1505.29587045,0.0001,2]
[342217362,1731593443526,-6217.86726674,0.0001,2]
[342217365,1731593443585,-2431.06246597,0.0001,2]
[342217366,1731593443624,-1921526.35793691,0.0001,2]
[342217367,1731593443635,-2305.4056,0.0001,2]
[342217368,1731593443728,-5954.37849965,0.0001,2]
[342217369,1731593443743,-24039.56446855,0.0001,2]
[342217370,1731593443755,-2615.70207003,0.0001,2]
[342217372,1731593443766,-36976.86092293,0.0001,2]
[342217374,1731593443777,-472.45244606,0.0001,2]
[342217416,1731593446378,-90699.17255112,0.0001,2]
[342217417,1731593446421,-69328.38700013,0.0001,2]
[342217418,1731593446432,-9070.0,0.0001,2]
[342217419,1731593446464,-3618.896643,0.0001,2]
[342217420,1731593446517,-34331.52701503,0.0001,2]
[342217421,1731593446571,-16112.87999995,0.0001,2]
[342217422,1731593446614,-2602.14330272,0.0001,2]
[342217423,1731593446625,-2458.06362462,0.0001,2]
[342217424,1731593446636,-1090.787595,0.0001,2]
[342217425,1731593446695,-17719.57922838,0.0001,2]
[342217426,1731593446706,-10535.6001,0.0001,2]
[342217446,1731593458492,-162.82512886,0.0001,7]
[342217448,1731593703772,156.0,0.0001,30]
[342217449,1731593703906,156.0,0.00012583,30]
[342217450,1731593703997,156.0,0.00015167,30]
[342217452,1731593937286,-1800.0,8.219e-05,2]
[342217454,1731593998878,-14.7,8.219e-05,2]
[342217455,1731593998906,-250.0,9.193e-05,2]
[342217456,1731593998933,-23900.0,9.276e-05,2]
[342217457,1731593998960,-1335.71131037,9.276e-05,2]
[342217458,1731593998986,-2726.86,9.49e-05,2]
[342217459,1731593999014,-150.08,9.51e-05,2]
[342217460,1731593999842,-901.07,9.531e-05,2]
[342217461,1731593999870,-7376.5,9.567e-05,2]
[342217462,1731593999892,-250.0,9.651e-05,2]
[342217463,1731593999914,-414.84,9.67e-05,2]
[342217464,1731593999938,-582.56,9.676e-05,2]
[342217465,1731593999960,-402.4878,9.9e-05,2]
[342217466,1731593999982,-433.2,9.943e-05,2]
[342217467,1731594000007,-641.84453191,9.973e-05,2]
[342217468,1731594000030,-501.54398888,9.973e-05,2]
[342217469,1731594000053,-500.0,9.973e-05,2]
[342217470,1731594000076,-1087.2902523,9.991e-05,2]
[342217471,1731594000099,-2940.8808789,9.991e-05,2]
[342217472,1731594000121,-368.331337,9.992e-05,2]
[342217473,1731594000144,-801.0428782,9.992e-05,2]
[342217474,1731594000167,-150.0,9.992e-05,2]
[342217475,1731594000191,-1178.995,9.993e-05,2]
[342217476,1731594000214,-368.331337,9.993e-05,2]
[342217477,1731594000238,-674.2780606,9.993e-05,2]
[342217478,1731594000263,-915.2268656,9.993e-05,2]
[342217479,1731594000287,-1134.22575924,9.993e-05,2]
[342217480,1731594000341,-1334.78974356,9.993e-05,2]
[342217481,1731594000365,-150.01,9.999e-05,2]
[342217482,1731594000389,-5875.39524068,9.999e-05,2]
[342217483,1731594000412,-12623.40088548,9.999e-05,2]
[342217484,1731594000445,-30016.40413028,0.0001,2]
[342217485,1731594000510,-50000.0,0.0001,2]
[342217486,1731594001463,-50000.0,0.0001,2]
[342217487,1731594002145,157.0,0.0001,30]
[342217488,1731594002245,-300.0,9.275e-05,2]
[342217489,1731594002272,-150.99,9.67e-05,2]
[342217490,1731594002301,-49549.01,0.0001,2]
[342217491,1731594002642,157.0,0.00013444,30]
[342217492,1731594004437,-299.99,9.67e-05,2]
[342217493,1731594004471,-49700.01,0.0001,2]
[342217494,1731594011423,-245.5542247,9.992e-05,2]
[342217495,1731594011457,-10089.4457753,0.0001,2]
[342217501,1731594231454,-350.0,8.676e-05,2]
[342217503,1731594304137,157.0,8.676e-05,30]
[342217504,1731594304245,157.0,0.00013294,30]
[342217505,1731594356874,1572.16483008,6.94e-05,2]
[342217506,1731594433111,-320.25502513,8.507e-05,2]
[342217507,1731594448119,-139.64497487,8.507e-05,2]
[342217508,1731594448140,-335.96604381,8.523e-05,2]
[342217509,1731594448171,-194.18,8.523e-05,2]
[342217510,1731594448539,-250.0,8.526e-05,2]
[342217511,1731594448584,-1852.42,8.529e-05,2]
[342217512,1731594448607,-1000.0,8.549e-05,2]
[342217513,1731594448632,-250.0,8.617e-05,2]
[342217514,1731594448655,-544.69,8.676e-05,2]
[342217515,1731594448683,-300.0,8.999e-05,2]
[342217516,1731594448704,-3289.50913737,9e-05,2]
[342217517,1731594448725,-450.0,9e-05,2]
[342217518,1731594448749,-188.69,9.418e-05,2]
[342217519,1731594448772,-188.69,9.42e-05,2]
[342217520,1731594448794,-188.69,9.423e-05,2]
[342217521,1731594448816,-188.69,9.425e-05,2]
[342217522,1731594448839,-188.69,9.428e-05,2]
[342217523,1731594448863,-188.69,9.43e-05,2]
[342217524,1731594448886,-188.69,9.432e-05,2]
[342217525,1731594448908,-188.69,9.435e-05,2]
[342217526,1731594448935,-188.69,9.437e-05,2]
[342217527,1731594448958,-188.69,9.44e-05,2]
[342217528,1731594448979,-188.69,9.442e-05,2]
[342217529,1731594449001,-188.69,9.445e-05,2]
[342217530,1731594449025,-188.69,9.447e-05,2]
[342217531,1731594449048,-188.69,9.45e-05,2]
[342217532,1731594449070,-763.3,9.45e-05,2]
[342217533,1731594449091,-432.72,9.45e-05,2]
[342217534,1731594449114,-188.69,9.452e-05,2]
[342217535,1731594449139,-188.69,9.455e-05,2]
[342217536,1731594449164,-150.0,9.455e-05,2]
[342217537,1731594449187,-188.69,9.457e-05,2]
[342217538,1731594449211,-188.69,9.46e-05,2]
[342217539,1731594449232,-150.0,9.46e-05,2]
[342217540,1731594449255,-188.69,9.462e-05,2]
[342217541,1731594449278,-188.69,9.465e-05,2]
[342217542,1731594449300,-168.65,9.595e-05,2]
[342217543,1731594449321,-200.0,9.614e-05,2]
[342217544,1731594449342,-2000.0,9.614e-05,2]
[342217545,1731594449364,-1000.0,9.617e-05,2]
[342217546,1731594449385,-1944.05,9.65e-05,2]
[342217547,1731594449409,-5149.07734807,9.789e-05,2]
[342217548,1731594449432,-13402.97,9.8e-05,2]
[342217549,1731594449454,-2500.0,9.8e-05,2]
[342217550,1731594449476,-517.0131,9.9e-05,2]
[342217551,1731594449497,-6051.42998706,9.9e-05,2]
[342217552,1731594547085,-1700.72210091,8.219e-05,2]
[342217553,1731594550125,-81.87789909,8.219e-05,2]
[342217554,1731594550152,-150.0,9e-05,2]
[342217560,1731594602517,157.0,9e-05,30]
[342217561,1731594602781,157.0,0.000154,30]
[342217571,1731594631658,-164.85,9.751e-05,2]
[342217572,1731594631667,-5386.89385648,9.792e-05,2]
[342217573,1731594631779,-18513.10614352,9.792e-05,2]
[342217574,1731594631789,-332.8091,9.8e-05,2]
[342217575,1731594631799,-22172.8639,9.8e-05,2]
[342217576,1731594631809,-300.0,9.899e-05,2]
[342217577,1731594631819,-150.0,9.899e-05,2]
[342217578,1731594631829,-63392.88562648,9.9e-05,2]
[342217579,1731594631902,-18986.37083143,9.9e-05,2]
[342217580,1731594632246,-59470.87244585,9.9e-05,2]
[342217581,1731594632258,-64568.55832587,9.9e-05,2]
[342217582,1731594632280,-37529.88278331,9.9e-05,2]
[342217583,1731594632291,-577.510323,9.9e-05,2]
[342217584,1731594632299,-200.0,9.9e-05,2]
[342217585,1731594632308,-358.15546809,9.973e-05,2]
[342217586,1731594632318,-500.0,9.973e-05,2]
[342217587,1731594632330,-109581.66668026,9.98e-05,2]
[342217588,1731594632340,-432.72,9.98e-05,2]
[342217589,1731594632350,-204.6285206,9.992e-05,2]
[342217590,1731594632364,-238.244011,9.992e-05,2]
[342217591,1731594632374,-324.7916252,9.992e-05,2]
[342217592,1731594632384,-767.5116485,9.992e-05,2]
[342217593,1731594632393,-251.5241338,9.992e-05,2]
[342217594,1731594632404,-3888.02,9.992e-05,2]
[342217595,1731594632413,-668.5720227,9.992e-05,2]
[342217596,1731594632423,-204.6285206,9.993e-05,2]
[342217597,1731594632433,-238.244011,9.993e-05,2]
[342217598,1731594632442,-324.7916252,9.993e-05,2]
[342217599,1731594632452,-651.0510925,9.993e-05,2]
[342217600,1731594632463,-280.2660533,9.993e-05,2]
[342217601,1731594632473,-299.99,9.993e-05,2]
[342217602,1731594632484,-744.9704303,9.993e-05,2]
[342217603,1731594632494,-821.3688378,9.993e-05,2]
[342217604,1731594632504,-169.1072683,9.999e-05,2]
[342217605,1731594632515,-816.998,9.999e-05,2]
[342217606,1731594632524,-179.735,9.999e-05,2]
[342217607,1731594632534,-153.32596441,9.999e-05,2]
[342217608,1731594632543,-1802.83787329,9.999e-05,2]
[342217609,1731594632554,-509.62,9.999e-05,2]
[342217610,1731594632563,-4852540.3957511,0.0001,2]
[342217614,1731594637994,-5201.04673217,0.0001,2]
[342217618,1731594638019,-1725.82845803,0.0001,2]
[342217619,1731594638136,-3545.80262322,0.0001,2]
[342217620,1731594638147,-2059.69324223,0.0001,2]
[342217621,1731594638158,-9449499.55615037,0.0001,2]
[342217622,1731594638169,-720.77912778,0.0001,2]
[342217639,1731594639726,-18318.31881125,0.0001,2]
[342217640,1731594639738,-865.14466461,0.0001,2]
[342217641,1731594639749,-464.94494998,0.0001,2]
[342217643,1731594640045,-0.997967,0.0001,2]
[342217648,1731594642575,-153.32596441,9.999e-05,2]
[342217649,1731594642589,-7909.05959779,0.0001,2]
[342217650,1731594642599,-4686.92349395,0.0001,2]
[342217651,1731594642610,-1658.2245676,0.0001,2]
[342217652,1731594642621,-2034.9981,0.0001,2]
[342217653,1731594642632,-10327.08962331,0.0001,2]
[342217654,1731594642719,-901.41893665,9.999e-05,2]
[342217655,1731594642730,-39071.36875768,0.0001,2]
[342217656,1731594642743,-5312.67230311,0.0001,2]
[342217658,1731594642754,-5754.37473811,0.0001,2]
[342217659,1731594642839,-1819.9726016,0.0001,2]
[342217800,1731594645574,-183753.26370104,0.0001,2]
[342217801,1731594645589,-1942.825,0.0001,2]
[342217802,1731594645605,-249510.63675702,0.0001,2]
[342217803,1731594645616,-236795.0492652,0.0001,2]
[342217804,1731594645627,-239788.83915799,0.0001,2]
[342217805,1731594645639,-37191.318,0.0001,2]
[342217895,1731594647013,-59373.867,0.0001,2]
[342217897,1731594647025,-637.59686912,0.0001,2]
[342217904,1731594647087,-519.14852251,0.0001,2]
[342217907,1731594647098,-4063.58996527,0.0001,2]
[342217909,1731594647114,-2259.78013505,0.0001,2]
[342217911,1731594647125,-1609.05,0.0001,2]
[342217927,1731594895732,-150.0,7.063e-05,2]
[342217928,1731594902517,157.0,0.0001,30]
[342217929,1731595203378,157.0,7.063e-05,30]
[342217930,1731595457488,995.0,0.00015,30]
[342217931,1731595609093,259.23,8.5e-05,10]
[342217932,1731595629386,-212.78339333,8.219e-05,2]
[342217933,1731595746154,-1488.18660667,8.219e-05,2]
[342217937,1731595801448,-447.34,9.261e-05,2]
[342217938,1731595802930,157.0,7.063e-05,30]
[342217939,1731595803295,192.3042,8.219e-05,2]
[342217979,1731595831802,-7622.55215447,9.269e-05,2]
[342217981,1731595831814,-546.70831491,9.269e-05,2]
[342217983,1731595831832,-996.45845555,9.269e-05,2]
[342218080,1731595835639,-14734.28107507,9.269e-05,2]
[342218082,1731595835650,-250.0,9.387e-05,2]
[342218084,1731595835661,-256.28,9.501e-05,2]
[342218086,1731595835672,-1000.0,9.545e-05,2]
[342218088,1731595835683,-162.73,9.653e-05,2]
[342218090,1731595835695,-432.72,9.66e-05,2]
[342218091,1731595835706,-190.02,9.661e-05,2]
[342218093,1731595835718,-250.0,9.661e-05,2]
[342218095,1731595835729,-182.83,9.718e-05,2]
[342218098,1731595835740,-4404.05,9.718e-05,2]
[342218100,1731595835752,-150.0,9.899e-05,2]
[342218102,1731595835763,-250.0,9.899e-05,2]
[342218104,1731595835774,-61914.08872493,9.9e-05,2]
[342218106,1731595835787,-1050.17439098,9.9e-05,2]
[342218108,1731595835800,-4913.67578409,9.9e-05,2]
[342218110,1731595835811,-601.52509941,9.973e-05,2]
[342218112,1731595835825,-564.11677365,9.973e-05,2]
[342218114,1731595835836,-161.7200347,9.991e-05,2]
[342218116,1731595835847,-818.51408316,9.991e-05,2]
[342218118,1731595835858,-218.5198054,9.991e-05,2]
[342218120,1731595835869,-242.1405197,9.991e-05,2]
[342218122,1731595835881,-234.7472348,9.991e-05,2]
[342218124,1731595835893,-814.792152,9.991e-05,2]
[342218126,1731595835904,-160.5637571,9.993e-05,2]
[342218128,1731595835915,-217.7229832,9.993e-05,2]
[342218130,1731595835927,-241.2575658,9.993e-05,2]
[342218132,1731595835940,-234.7472348,9.993e-05,2]
[342218134,1731595835951,-683.7084218,9.993e-05,2]
[342218136,1731595835961,-1500.0,9.998e-05,2]
[342218138,1731595835974,-450.70946832,9.999e-05,2]
[342218140,1731595835985,-1037.434,9.999e-05,2]
[342218142,1731595835997,-515.0,0.0001,2]
[342218145,1731595836009,-8626.60508207,0.0001,2]
[342218147,1731595836025,-85200.22461132,0.0001,2]
[342218149,1731595836042,-228915.08345751,0.0001,2]
[342218152,1731595836055,-91033.86840645,0.0001,2]
[342218154,1731595836068,-44191.63,0.0001,2]
[342218158,1731595836106,-62660.0,0.0001,2]
[342218160,1731595836120,-1935171.44167413,0.0001,2]
[342218162,1731595836133,-18441.69947192,0.0001,2]
[342218165,1731595836151,-80466.74033753,0.0001,2]
[342218167,1731595836164,-922.22742899,0.0001,2]
[342218170,1731595836177,-710.92814056,0.0001,2]
[342218172,1731595836190,-2670.0,0.0001,2]
[342218174,1731595836203,-33750.0,0.0001,2]
[342218300,1731595837738,-901.41893664,9.999e-05,2]
[342218302,1731595837751,-217.52689102,0.0001,2]
[342218305,1731595837766,-629.76596073,0.0001,2]
[342218307,1731595837780,-71630.95710615,0.0001,2]
[342218310,1731595837793,-323319.72246736,0.0001,2]
[342218312,1731595837807,-702455.31504988,0.0001,2]
[342218316,1731595837837,-13159.7635776,0.0001,2]
[342218318,1731595837851,-3035.66451136,0.0001,2]
[342218323,1731595837883,-378.18990741,0.0001,2]
[342218398,1731595838618,-272.28669671,0.0001,2]
[342218405,1731595838679,-7459.67042934,0.0001,2]
[342218411,1731595838723,-8766.36467431,0.0001,2]
[342218413,1731595838740,-9054.08670844,0.0001,2]
[342218415,1731595838751,-1988.69433813,0.0001,2]
[342218418,1731595838763,-8967.25775918,0.0001,2]
[342218420,1731595838774,-26876.85,0.0001,2]
[342218422,1731595838786,-299.04183391,0.0001,2]
[342218425,1731595838806,-26079449.4429917,0.0001,2]
[342218427,1731595838818,-4492.74715,0.0001,2]
[342218431,1731595838847,-2403.78704119,0.0001,2]
[342218433,1731595838859,-1215.40923805,0.0001,2]
[342218436,1731595838870,-1169.55400002,0.0001,2]
[342218438,1731595838885,-2685.51,0.0001,2]
[342218440,1731595838897,-113203.6251342,0.0001,2]
[342218443,1731595838909,-875.792,0.0001,2]
[342218533,1731595839737,-1633.81714804,0.0001,2]
[342218541,1731595839804,-1134.57699998,0.0001,2]
[342218543,1731595839816,-88346.31300539,0.0001,2]
[342218557,1731595839945,-3863.90523127,0.0001,2]
[342218559,1731595839958,-627.8032604,0.0001,2]
[342218563,1731595839983,-3106.86101661,0.0001,2]
[342218565,1731595839994,-2990.68575692,0.0001,2]